bitfinex-derivatives/quotes_BNBF0:USTF0_20250715
["timestamp","ask_amount","ask_price","bid_price","bid_amount"]
[1752551296281,0.25610645,679.77,678.8,0.98552539]
[1752551296580,0.25610645,679.77,678.81,0.98552539]
[1752551297383,0.25610645,679.77,678.8,0.98552539]
[1752551297584,0.25610645,679.77,678.81,0.98552539]
[1752551298487,0.25610645,679.77,678.86,0.98552539]
[1752551299388,0.97937623,679.76,678.89,0.98552539]
[1752551299787,0.97937623,679.76,678.88,0.98552539]
[1752551299983,0.97937623,679.75,678.89,0.98552539]
[1752551300186,0.25610645,679.77,678.86,0.98552539]
[1752551303493,0.25610645,679.77,678.85,0.98552539]
[1752551303791,0.25610645,679.77,678.81,0.98552539]
[1752551304389,0.25610645,679.77,678.82,0.98552539]
[1752551304792,0.25610645,679.77,678.81,0.98552539]
[1752551305193,0.97937623,679.75,678.79,0.98552539]
[1752551305390,0.97937623,679.73,678.74,0.98552539]
[1752551306195,0.25610645,679.77,677.58,3.2934083]
[1752551306196,0.97937623,679.74,678.73,0.98552539]
[1752551307395,0.97937623,679.76,678.72,0.98552539]
[1752551307594,1.23548268,679.77,678.71,0.98552539]
[1752551307795,0.97937623,679.76,678.71,0.98552539]
[1752551308095,0.97937623,679.74,678.68,0.98552539]
[1752551308697,0.97937623,679.73,678.68,0.98552539]
[1752551309694,0.97937623,679.73,678.69,0.98552539]
[1752551310193,0.97937623,679.72,678.69,0.98552539]
[1752551310395,0.97937623,679.71,678.71,0.98552539]
[1752551310798,0.97937623,679.73,678.73,0.98552539]
[1752551311400,0.97937623,679.7,678.75,0.98552539]
[1752551312506,0.97937623,679.69,678.75,0.98552539]
[1752551312801,0.97937623,679.67,678.75,0.98552539]
[1752551313004,0.97937623,679.64,678.78,0.98552539]
[1752551313203,0.97937623,679.64,678.77,0.98552539]
[1752551313506,0.97937623,679.64,678.78,0.98552539]
[1752551313906,0.97937623,679.64,678.75,0.98552539]
[1752551314205,0.97937623,679.63,678.75,0.98552539]
[1752551314405,0.97937623,679.62,678.75,0.98552539]
[1752551315306,0.97937623,679.64,678.74,0.98552539]
[1752551315506,0.97937623,679.63,678.74,0.98552539]
[1752551316202,0.97937623,679.61,678.76,0.98552539]
[1752551317806,0.97937623,679.61,678.75,0.98552539]
[1752551318205,0.97937623,679.6,678.75,0.98552539]
[1752551318404,0.97937623,679.6,678.76,0.98552539]
[1752551319107,0.97937623,679.6,678.75,0.98552539]
[1752551319304,0.97937623,679.6,678.58,1.3173633]
[1752551319305,0.97937623,679.6,678.76,0.98552539]
[1752551320406,0.97937623,679.62,678.74,0.98552539]
[1752551321209,0.97937623,679.59,678.77,0.98552539]
[1752551321406,0.97937623,679.58,678.77,0.98552539]
[1752551321909,0.97937623,679.59,678.77,0.98552539]
[1752551322706,0.97937623,679.59,678.6,1.3173633]
[1752551322707,0.97937623,679.58,678.78,0.98552539]
[1752551322910,0.97937623,679.57,678.78,0.98552539]
[1752551323408,0.97937623,679.56,678.79,0.98552539]
[1752551324313,0.97937623,679.56,678.8,0.98552539]
[1752551325011,0.97937623,679.55,678.8,0.98552539]
[1752551326312,0.97937623,679.54,678.81,0.98552539]
[1752551326917,0.97937623,679.54,678.8,0.98552539]
[1752551327714,0.97937623,679.54,678.81,0.98552539]
[1752551329518,0.9839378,679.53,678.81,0.99046579]
[1752551329917,0.9839378,679.53,678.82,0.99046579]
[1752551330117,0.9839378,679.5,678.83,0.99046579]
[1752551330318,0.9839378,679.5,678.84,0.99046579]
[1752551330919,0.9839378,679.47,678.86,0.99046579]
[1752551331423,0.9839378,679.45,678.87,0.99046579]
[1752551331924,0.9839378,679.44,678.88,0.99046579]
[1752551332823,0.9839378,679.45,678.87,0.99046579]
[1752551333018,0.9839378,679.44,678.88,0.99046579]
[1752551333719,0.9839378,679.45,678.87,0.99046579]
[1752551337923,0.9839378,679.45,678.86,0.99046579]
[1752551338827,0.9839378,679.46,678.86,0.99046579]
[1752551340325,0.9839378,679.51,678.82,0.99046579]
[1752551340529,0.9839378,679.53,678.84,0.99046579]
[1752551341526,0.9839378,679.52,678.84,0.99046579]
[1752551342127,0.9839378,679.54,678.85,0.99046579]
[1752551343428,0.9839378,679.54,678.86,0.99046579]
[1752551343731,0.9839378,679.54,678.85,0.99046579]
[1752551343932,0.9839378,679.54,678.86,0.99046579]
[1752551344333,0.9839378,679.53,678.86,0.99046579]
[1752551344826,0.9839378,679.54,678.86,0.99046579]
[1752551345037,0.9839378,679.53,678.86,0.99046579]
[1752551345240,0.9839378,679.56,678.84,0.99046579]
[1752551345730,0.9839378,679.57,678.84,0.99046579]
[1752551346232,0.9839378,679.56,678.84,0.99046579]
[1752551348232,1.2996341,679.74,678.66,1.3173633]
[1752551348534,0.98534598,679.56,678.84,0.99089562]
[1752551348829,0.98534598,679.56,678.85,0.99089562]
[1752551349331,0.98534598,679.55,678.85,0.99089562]
[1752551350133,0.98534598,679.53,678.86,0.99089562]
[1752551350532,0.98534598,679.56,678.84,0.99089562]
[1752551351132,0.98534598,679.57,678.84,0.99089562]
[1752551352532,0.98534598,679.57,678.85,0.99089562]
[1752551353828,0.98534598,679.56,678.86,0.99089562]
[1752551355334,0.98534598,679.54,678.87,0.99089562]
[1752551355636,0.98534598,679.54,678.88,0.99089562]
[1752551356133,0.98534598,679.53,678.88,0.99089562]
[1752551357137,0.98534598,679.52,678.88,0.99089562]
[1752551357338,0.98534598,679.52,678.89,0.99089562]
[1752551357635,0.98534598,679.51,678.88,0.99089562]
[1752551357935,0.98534598,679.5,678.88,0.99089562]
[1752551358133,0.98534598,679.51,678.88,0.99089562]
[1752551358434,0.98534598,679.5,678.88,0.99089562]
[1752551360237,0.98534598,679.47,678.9,0.99089562]
[1752551360538,0.98534598,679.47,677.51,4.6107716]
[1752551360539,0.98534598,679.51,678.88,0.99089562]
[1752551361041,0.98534598,679.5,678.89,0.99089562]
[1752551361241,0.98534598,679.49,678.9,0.99089562]
[1752551363144,0.98534598,679.48,678.91,0.99089562]
[1752551364143,0.98534598,679.48,678.92,0.99089562]
[1752551364845,0.98534598,679.43,678.95,0.99089562]
[1752551365245,0.98534598,679.43,678.96,0.99089562]
[1752551365440,0.98534598,679.47,678.93,0.99089562]
[1752551367342,0.98534598,679.51,678.97,0.99089562]
[1752551369952,0.98534598,679.55,679.02,0.99089562]
[1752551370452,0.98534598,679.56,679.01,0.99089562]
[1752551370651,0.98534598,679.57,679.03,0.99089562]
[1752551371248,0.98534598,679.64,679.09,0.99089562]
[1752551371453,0.98534598,679.65,679.08,0.99089562]
[1752551372352,0.98534598,679.67,679.07,0.99089562]
[1752551372853,0.98534598,679.66,679.06,0.99089562]
[1752551373249,0.98534598,679.67,679.05,0.99089562]
[1752551373450,0.98534598,679.66,679.06,0.99089562]
[1752551373654,0.98534598,679.67,679.05,0.99089562]
[1752551374354,0.98534598,679.68,679.05,0.99089562]
[1752551375249,0.98534598,679.68,679.07,0.99089562]
[1752551375455,0.98534598,679.65,679.07,0.99089562]
[1752551375652,0.98534598,679.7,679.04,0.99089562]
[1752551376357,0.98534598,679.7,679.03,0.99089562]
[1752551377158,0.98534598,679.74,679.08,0.99089562]
[1752551377353,0.98534598,679.75,679.07,0.99089562]
[1752551377653,0.98534598,679.73,679.06,0.99089562]
[1752551378153,0.98534598,679.75,679.04,0.99089562]
[1752551378356,0.98534598,679.76,679.04,0.99089562]
[1752551378956,0.98534598,679.74,679.02,0.99089562]
[1752551379453,0.98534598,679.75,679.02,0.99089562]
[1752551380159,0.98534598,679.78,679.0,0.99089562]
[1752551380458,0.98534598,679.78,678.99,0.99089562]
[1752551380655,0.98534598,679.8,678.98,0.99089562]
[1752551381253,0.98534598,679.79,678.96,0.99089562]
[1752551381457,0.98534598,679.8,678.96,0.99089562]
[1752551381654,0.98534598,679.77,678.92,0.99089562]
[1752551382160,0.98534598,679.76,678.92,0.99089562]
[1752551382554,0.98534598,679.74,678.92,0.99089562]
[1752551384256,0.98534598,679.73,678.9,0.99089562]
[1752551385458,0.98534598,679.75,678.89,0.99089562]
[1752551388759,0.98534598,679.74,678.89,0.99089562]
[1752551389159,0.98534598,679.74,678.88,0.99089562]
[1752551389364,0.98534598,679.72,678.9,0.99089562]
[1752551390560,0.98534598,679.73,678.9,0.99089562]
[1752551391262,0.98534598,679.72,678.9,0.99089562]
[1752551391465,0.98534598,679.71,678.91,0.99089562]
[1752551391671,0.25604897,679.9,677.72,3.2934083]
[1752551391672,0.98534598,679.72,678.9,0.99089562]
[1752551391861,0.98858217,679.72,678.9,0.98986384]
[1752551393061,0.98858217,679.71,678.9,0.98986384]
[1752551393672,0.98858217,679.68,678.91,0.98986384]
[1752551394063,0.98858217,679.69,678.91,0.98986384]
[1752551394569,0.98858217,679.69,678.92,0.98986384]
[1752551394864,0.98858217,679.69,678.91,0.98986384]
[1752551395169,0.98858217,679.68,678.91,0.98986384]
[1752551395870,0.98858217,679.67,678.9,0.98986384]
[1752551396771,0.98858217,679.66,678.91,0.98986384]
[1752551397168,0.98858217,679.66,678.9,0.98986384]
[1752551397368,0.98858217,679.65,678.91,0.98986384]
[1752551397567,0.98858217,679.65,678.9,0.98986384]
[1752551397766,0.98858217,679.64,678.91,0.98986384]
[1752551398367,0.25604897,679.9,678.55,1.9760449]
[1752551398573,0.99012564,679.62,678.89,0.98818441]
[1752551399973,0.99012564,679.6,678.92,0.98818441]
[1752551400882,0.99012564,679.6,678.93,0.98818441]
[1752551401175,0.99012564,679.58,678.96,0.98818441]
[1752551401376,0.99012564,679.64,679.03,0.98818441]
[1752551401675,0.99012564,679.63,679.04,0.98818441]
[1752551401872,0.99012564,679.57,678.98,0.98818441]
[1752551402374,0.99018645,679.57,678.98,0.98789157]
[1752551403574,0.99018645,679.56,678.98,0.98789157]
[1752551404380,0.99018645,679.56,678.99,0.98789157]
[1752551405678,0.99018645,679.62,678.95,0.98789157]
[1752551409082,0.99018645,679.6,678.94,0.98789157]
[1752551409278,0.99018645,679.61,678.94,0.98789157]
[1752551410685,0.99018645,679.64,678.92,0.98789157]
[1752551411482,0.99018645,679.66,678.91,0.98789157]
[1752551412284,0.99018645,679.65,678.91,0.98789157]
[1752551412681,0.99018645,679.69,678.89,0.98789157]
[1752551412882,1.57621647,679.9,678.93,0.98789157]
[1752551412883,0.99018645,679.75,678.93,0.98789157]
[1752551413693,0.99018645,679.75,678.92,0.98789157]
[1752551413986,0.99018645,679.76,678.92,0.98789157]
[1752551414386,0.99018645,679.75,678.92,0.98789157]
[1752551414988,0.99018645,679.74,678.92,0.98789157]
[1752551415187,0.25604897,679.9,678.91,0.98789157]
[1752551415188,0.99018645,679.73,678.91,0.98789157]
[1752551415587,0.99018645,679.74,678.9,0.98789157]
[1752551416491,0.99018645,679.74,678.91,0.98789157]
[1752551418294,0.99018645,679.74,678.92,0.98789157]
[1752551419196,0.99018645,679.73,678.92,0.98789157]
[1752551420490,0.99018645,679.72,678.93,0.98789157]
[1752551420701,0.99018645,679.67,678.96,0.98789157]
[1752551420896,0.99018645,679.68,678.96,0.98789157]
[1752551421096,0.99018645,679.63,678.91,0.98789157]
[1752551421296,0.99018645,679.63,678.71,1.3175792]
[1752551421297,0.99018645,679.61,678.9,0.98789157]
[1752551421595,0.99018645,679.58,678.91,0.98789157]
[1752551421791,0.99018645,679.61,678.89,0.98789157]
[1752551423096,0.99018645,679.59,678.9,0.98789157]
[1752551423596,0.99018645,679.59,678.71,1.3175792]
[1752551423597,0.99018645,679.58,678.91,0.98789157]
[1752551426496,0.99018645,679.57,678.91,0.98789157]
[1752551427000,0.99018645,679.58,678.91,0.98789157]
[1752551427197,0.99018645,679.76,678.77,0.98789157]
[1752551427402,0.99018645,679.76,678.78,0.98789157]
[1752551428003,0.99018645,679.65,678.66,0.98789157]
[1752551428203,0.99018645,679.64,678.66,0.98789157]
[1752551428503,0.99018645,679.49,678.76,0.98789157]
[1752551428703,0.99018645,679.35,678.69,0.98789157]
[1752551428902,0.99018645,679.4,678.71,0.98789157]
[1752551429403,0.99018645,679.42,678.69,0.98789157]
[1752551429598,0.99018645,679.42,678.7,0.98789157]
[1752551430199,0.99018645,679.39,678.72,0.98789157]
[1752551430400,0.99018645,679.46,678.8,0.98789157]
[1752551430803,0.99018645,679.5,678.8,0.98789157]
[1752551431305,0.99018645,679.5,678.79,0.98789157]
[1752551432699,0.99018645,679.47,678.81,0.98789157]
[1752551432901,0.99018645,679.45,678.79,0.98789157]
[1752551433302,0.99018645,679.46,678.79,0.98789157]
[1752551433807,0.99018645,679.44,678.77,0.98789157]
[1752551434102,0.99018645,679.41,678.74,0.98789157]
[1752551435308,0.99018645,679.42,678.73,0.98789157]
[1752551435807,0.99018645,679.4,678.72,0.98789157]
[1752551436108,0.99018645,679.36,678.65,0.98789157]
[1752551436312,0.99018645,679.36,678.62,0.98789157]
[1752551436907,0.99018645,679.4,678.58,0.98789157]
[1752551437203,0.99018645,679.32,678.5,0.98789157]
[1752551437406,0.99018645,679.34,678.49,0.98789157]
[1752551438310,0.99018645,679.36,678.48,0.98789157]
[1752551438606,0.99018645,679.35,678.49,0.98789157]
[1752551438817,0.99018645,679.34,678.49,0.98789157]
[1752551439317,0.99018645,679.35,678.49,0.98789157]
[1752551440114,0.99018645,679.34,678.48,0.98789157]
[1752551440313,1.3201675,679.52,677.37,3.2934083]
[1752551440314,0.99018645,679.35,678.47,0.98789157]
[1752551440827,0.99018645,679.37,678.46,0.98789157]
[1752551441318,0.99018645,679.38,678.45,0.98789157]
[1752551442415,0.99018645,679.39,678.44,0.98789157]
[1752551443321,1.3201675,679.58,678.44,0.98789157]
[1752551443322,0.99018645,679.4,678.44,0.98789157]
[1752551443521,0.25604897,679.9,677.28,3.2934083]
[1752551443522,0.99018645,679.41,678.43,0.98789157]
[1752551444228,0.99018645,679.4,678.42,0.98789157]
[1752551445324,0.99018645,679.41,678.41,0.98789157]
[1752551445621,0.99018645,679.38,678.43,0.98789157]
[1752551445818,0.99018645,679.39,678.42,0.98789157]
[1752551446219,0.99018645,679.4,678.41,0.98789157]
[1752551446925,0.99018645,679.38,678.39,0.98789157]
[1752551447426,0.99018645,679.38,678.01,1.9763688]
[1752551447427,0.99018645,679.39,678.38,0.98789157]
[1752551449331,0.99018645,679.4,678.37,0.98789157]
[1752551449524,0.99018645,679.37,678.38,0.98789157]
[1752551450221,0.99018645,679.37,678.39,0.98789157]
[1752551450423,0.99018645,679.36,678.39,0.98789157]
[1752551450941,1.9802512,679.68,678.39,0.98789157]
[1752551450942,0.99018645,679.34,678.39,0.98789157]
[1752551451122,0.99018645,679.37,678.38,0.98789157]
[1752551451325,0.99018645,679.37,678.37,0.98789157]
[1752551451522,0.99018645,679.37,678.2,1.3175792]
[1752551451523,0.99018645,679.32,678.32,0.98789157]
[1752551451724,0.99018645,679.28,678.28,0.98789157]
[1752551452024,0.99018645,679.27,678.27,0.98789157]
[1752551452223,0.99018645,679.28,678.27,0.98789157]
[1752551452425,0.99018645,679.28,678.26,0.98789157]
[1752551452628,0.99018645,679.23,678.22,0.98789157]
[1752551452828,0.99018645,679.23,678.21,0.98789157]
[1752551453026,0.99018645,679.21,678.19,0.98789157]
[1752551453230,0.99018645,679.18,678.17,0.98789157]
[1752551453428,0.99018645,679.19,678.14,0.98789157]
[1752551454330,1.9802512,679.52,677.13,3.2934083]
[1752551454331,0.99018645,679.2,678.13,0.98789157]
[1752551454829,0.99018645,679.21,678.13,0.98789157]
[1752551455430,0.99018645,679.22,678.12,0.98789157]
[1752551455930,0.99018645,679.23,678.11,0.98789157]
[1752551456341,0.99018645,679.21,678.11,0.98789157]
[1752551456832,0.99018645,679.22,678.11,0.98789157]
[1752551457029,0.99018645,679.23,678.11,0.98789157]
[1752551457329,0.99018645,679.24,678.1,0.98789157]
[1752551457534,0.99018645,679.25,678.09,0.98789157]
[1752551458335,0.99018645,679.26,678.08,0.98789157]
[1752551458535,0.99018645,679.28,678.1,0.98789157]
[1752551458832,0.99018645,679.32,678.14,0.98789157]
[1752551459131,0.99018645,679.34,678.16,0.98789157]
[1752551459332,0.99018645,679.38,678.2,0.98789157]
[1752551459632,0.99018645,679.39,678.2,0.98789157]
[1752551460635,0.99018645,679.43,678.17,0.98789157]
[1752551460832,0.99018645,679.44,678.16,0.98789157]
[1752551461341,0.99018645,679.45,678.16,0.98789157]
[1752551462131,0.99018645,679.44,678.16,0.98789157]
[1752551463433,0.98316825,679.44,678.16,0.98383355]
[1752551464129,0.98316825,679.44,677.96,1.3175792]
[1752551464130,0.98316825,679.43,678.19,0.98383355]
[1752551464332,0.98316825,679.5,678.26,0.98383355]
[1752551464831,0.98316825,679.47,678.29,0.98383355]
[1752551465035,0.98316825,679.48,678.28,0.98383355]
[1752551465233,0.98316825,679.52,678.33,0.98383355]
[1752551465431,0.98316825,679.53,678.34,0.98383355]
[1752551465636,0.98316825,679.56,678.32,0.98383355]
[1752551465833,0.98316825,679.58,678.31,0.98383355]
[1752551466433,0.98316825,679.58,678.3,0.98383355]
[1752551466637,0.98316825,679.67,678.39,0.98383355]
[1752551466937,0.98316825,679.67,678.4,0.98383355]
[1752551467235,0.98316825,679.74,678.46,0.98383355]
[1752551467536,0.98316825,679.73,678.46,0.98383355]
[1752551467737,0.98316825,679.71,678.48,0.98383355]
[1752551467933,0.98316825,679.7,678.48,0.98383355]
[1752551468139,0.98316825,679.71,678.45,0.98383355]
[1752551468433,0.98316825,679.7,678.46,0.98383355]
[1752551468837,0.98316825,679.71,678.46,0.98383355]
[1752551469434,0.98316825,679.68,678.44,0.98383355]
[1752551469834,0.25604897,679.9,678.41,0.98383355]
[1752551469835,0.98316825,679.65,678.41,0.98383355]
[1752551470240,0.98316825,679.64,678.41,0.98383355]
[1752551470934,0.98316825,679.62,678.43,0.98383355]
[1752551472040,0.98316825,679.61,678.44,0.98383355]
[1752551472439,0.98316825,679.6,678.44,0.98383355]
[1752551473036,0.98316825,679.59,678.45,0.98383355]
[1752551473236,0.98316825,679.58,678.46,0.98383355]
[1752551473540,0.98316825,679.51,678.5,0.98383355]
[1752551474336,0.98316825,679.5,678.51,0.98383355]
[1752551475338,0.98316825,679.49,678.52,0.98383355]
[1752551475542,0.98316825,679.49,678.51,0.98383355]
[1752551476442,0.25604897,679.9,678.52,0.98383355]
[1752551476443,0.98316825,679.48,678.52,0.98383355]
[1752551477137,0.98316825,679.49,678.51,0.98383355]
[1752551477339,0.98316825,679.48,678.52,0.98383355]
[1752551478446,0.98316825,679.47,678.53,0.98383355]
[1752551479545,0.98316825,679.46,678.53,0.98383355]
[1752551480243,0.98316825,679.45,678.54,0.98383355]
[1752551480847,0.98316825,679.46,678.54,0.98383355]
[1752551481243,0.98316825,679.45,678.54,0.98383355]
[1752551481746,0.98316825,679.46,678.55,0.98383355]
[1752551482446,0.98316825,679.45,678.55,0.98383355]
[1752551483147,0.98316825,679.46,678.55,0.98383355]
[1752551483341,0.98316825,679.44,678.56,0.98383355]
[1752551484342,0.98316825,679.44,678.42,1.3175792]
[1752551484343,0.98316825,679.43,678.57,0.98383355]
[1752551485251,0.98316825,679.41,678.58,0.98383355]
[1752551485447,0.98316825,679.49,678.55,0.98383355]
[1752551485647,0.25604897,679.9,678.61,0.98383355]
[1752551485648,0.98316825,679.55,678.61,0.98383355]
[1752551485845,0.98316825,679.57,678.63,0.98383355]
[1752551486450,0.98316825,679.57,678.64,0.98383355]
[1752551487350,0.98316825,679.56,678.64,0.98383355]
[1752551488246,0.98316825,679.48,678.53,0.98383355]
[1752551488450,0.98316825,679.48,678.34,1.3175792]
[1752551488451,0.98316825,679.48,678.51,0.98383355]
[1752551489049,0.98316825,679.47,678.52,0.98383355]
[1752551489951,0.98316825,679.47,678.53,0.98383355]
[1752551490179,0.98316825,679.49,678.54,0.98383355]
[1752551490353,0.98316825,679.48,678.55,0.98383355]
[1752551490652,0.98316825,679.49,678.55,0.98383355]
[1752551490849,0.98316825,679.53,678.6,0.98383355]
[1752551491352,0.98316825,679.52,678.61,0.98383355]
[1752551491654,0.98316825,679.54,678.66,0.98383355]
[1752551492449,0.98316825,679.54,678.32,1.9763688]
[1752551492450,0.98316825,679.56,678.72,0.98383355]
[1752551494055,0.98316825,679.53,678.74,0.98383355]
[1752551495150,0.98316825,679.54,678.75,0.98383355]
[1752551495350,0.98316825,679.55,678.75,0.98383355]
[1752551496354,0.98316825,679.55,678.74,0.98383355]
[1752551497154,0.98316825,679.55,678.75,0.98383355]
[1752551497354,0.98316825,679.56,678.74,0.98383355]
[1752551497552,0.98316825,679.55,678.74,0.98383355]
[1752551498358,0.98316825,679.56,678.74,0.98383355]
[1752551499357,0.98316825,679.58,678.72,0.98383355]
[1752551501361,0.98316825,679.58,678.71,0.98383355]
[1752551501662,0.98316825,679.58,678.72,0.98383355]
[1752551502160,0.98316825,679.58,678.66,0.98383355]
[1752551502360,0.98316825,679.7,678.69,0.98383355]
[1752551502558,0.98316825,679.73,678.72,0.98383355]
[1752551502763,0.98316825,679.74,678.71,0.98383355]
[1752551502961,0.98316825,679.75,678.7,0.98383355]
[1752551503558,0.98316825,679.76,678.69,0.98383355]
[1752551503762,0.98316825,679.71,678.73,0.98383355]
[1752551503960,0.98316825,679.8,678.81,0.98383355]
[1752551504162,0.98316825,679.81,678.82,0.98383355]
[1752551504362,0.98316825,679.82,678.81,0.98383355]
[1752551505758,0.98316825,679.81,678.82,0.98383355]
[1752551506358,0.98316825,679.82,678.82,0.98383355]
[1752551507360,0.98316825,679.82,678.81,0.98383355]
[1752551508163,0.98316825,679.77,678.84,0.98383355]
[1752551508360,0.98316825,679.85,678.87,0.98383355]
[1752551509364,0.98316825,679.85,677.97,3.2934083]
[1752551509365,0.98316825,679.86,678.86,0.98383355]
[1752551510266,0.98316825,679.87,678.86,0.98383355]
[1752551510964,0.98316825,679.88,678.86,0.98383355]
[1752551511261,1.23921722,679.9,678.87,0.98383355]
[1752551512866,0.98316825,679.89,678.87,0.98383355]
[1752551514164,0.98316825,679.89,678.88,0.98383355]
[1752551514466,0.98316825,679.88,678.88,0.98383355]
[1752551515762,0.98316825,679.85,678.91,0.98383355]
[1752551516366,0.98316825,679.84,678.91,0.98383355]
[1752551516863,0.98316825,679.84,678.79,1.3175792]
[1752551516864,0.98316825,679.88,678.89,0.98383355]
[1752551517068,0.25604897,679.9,678.9,0.98383355]
[1752551518363,0.25604897,679.9,678.91,0.98383355]
[1752551518568,0.25604897,679.9,678.73,1.3175792]
[1752551518867,0.25604897,679.9,678.91,0.98192612]
[1752551519463,0.25604897,679.9,678.95,0.98192612]
[1752551520767,0.25604897,679.9,678.96,0.98192612]
[1752551522164,0.25604897,679.9,678.99,0.98192612]
[1752551522366,1.24125431,679.9,678.95,0.98192612]
[1752551522564,0.98520534,679.89,678.96,0.98192612]
[1752551523272,1.24125431,679.9,678.96,0.98192612]
[1752551523469,0.98520534,679.89,678.96,0.98192612]
[1752551525370,0.98520534,679.88,678.97,0.98192612]
[1752551525570,0.98520534,679.89,678.96,0.98192612]
[1752551526466,0.98520534,679.88,678.96,0.98192612]
[1752551527170,0.98520534,679.89,678.96,0.98192612]
[1752551529373,0.25604897,679.9,678.99,0.98192612]
[1752551530570,0.25604897,679.9,678.98,0.98192612]
[1752551530774,0.25604897,679.9,679.0,0.98192612]
[1752551531372,0.25604897,679.9,678.98,0.98192612]
[1752551532978,0.25604897,679.9,678.97,0.98192612]
[1752551533773,0.25604897,679.9,678.98,0.98192612]
[1752551534178,0.25604897,679.9,678.97,0.98192612]
[1752551534979,0.25604897,679.9,678.1,3.2934083]
[1752551534980,0.25604897,679.9,678.99,0.98192612]
[1752551536075,0.25604897,679.9,679.0,0.98192612]
[1752551537179,0.25604897,679.9,678.99,0.98192612]
[1752551537379,0.25604897,679.9,678.84,1.3175792]
[1752551537380,0.25604897,679.9,679.0,0.98192612]
[1752551540583,0.25604897,679.9,677.8,4.6107716]
[1752551540584,0.25604897,679.9,679.01,0.98192612]
[1752551541182,0.25604897,679.9,679.0,0.98192612]
[1752551541383,0.25604897,679.9,679.02,0.98192612]
[1752551542884,0.25604897,679.9,679.0,0.98192612]
[1752551543284,0.25604897,679.9,679.01,0.98192612]
[1752551543581,0.25604897,679.9,678.05,3.2934083]
[1752551543582,0.25604897,679.9,678.98,0.98192612]
[1752551544284,0.25604897,679.9,678.97,0.98192612]
[1752551544487,0.25604897,679.9,678.98,0.98192612]
[1752551544883,0.25604897,679.9,678.95,0.98192612]
[1752551546187,0.25604897,679.9,678.96,0.98192612]
[1752551546683,0.25604897,679.9,678.98,0.98192612]
[1752551547487,0.25604897,679.9,677.92,3.2934083]
[1752551547488,0.25604897,679.9,679.01,0.98192612]
[1752551547789,0.25604897,679.9,679.02,0.98192612]
[1752551547989,0.25604897,679.9,679.04,0.98192612]
[1752551548390,0.25604897,679.9,679.05,0.98192612]
[1752551549085,0.25604897,679.9,679.06,0.98192612]
[1752551549285,1.24125431,679.9,679.07,0.98192612]
[1752551550387,0.98520534,679.89,679.07,0.98192612]
[1752551551290,0.25604897,679.9,679.03,0.98192612]
[1752551551890,0.25604897,679.9,678.83,1.3175792]
[1752551551891,0.25604897,679.9,678.99,0.98192612]
[1752551552086,1.24125431,679.9,678.99,0.98192612]
[1752551552287,1.24125431,679.9,678.8,1.3175792]
[1752551552288,0.98520534,679.84,678.95,0.98192612]
[1752551552490,0.98520534,679.82,678.93,0.98192612]
[1752551552690,0.98520534,679.82,677.46,4.6107716]
[1752551552691,0.98520534,679.76,678.86,0.98192612]
[1752551553093,0.98520534,679.75,678.85,0.98192612]
[1752551553289,0.98520534,679.74,678.86,0.98192612]
[1752551553488,0.98520534,679.59,678.82,0.98192612]
[1752551553787,0.98520534,679.58,678.78,0.98192612]
[1752551554191,0.98520534,679.58,678.77,0.98192612]
[1752551554389,0.98520534,679.58,678.78,0.98192612]
[1752551555092,0.98520534,679.58,678.77,0.98192612]
[1752551555292,0.98520534,679.58,678.78,0.98192612]
[1752551555988,0.98520534,679.57,678.78,0.98192612]
[1752551556188,0.98520534,679.58,678.77,0.98192612]
[1752551556489,0.98520534,679.56,678.78,0.98192612]
[1752551557093,1.3201675,679.72,678.63,1.3175792]
[1752551557392,0.9884987,679.56,678.78,0.98548496]
[1752551558087,0.9884987,679.57,678.78,0.98548496]
[1752551558292,1.3201675,679.72,678.78,0.98548496]
[1752551558293,0.9884987,679.56,678.78,0.98548496]
[1752551559387,0.9884987,679.56,678.79,0.98548496]
[1752551560087,0.9884987,679.56,678.78,0.98548496]
[1752551560391,0.9884987,679.56,678.79,0.98548496]
[1752551561294,0.9884987,679.56,678.78,0.98548496]
[1752551561488,0.9884987,679.55,678.79,0.98548496]
[1752551562191,0.9884987,679.56,678.78,0.98548496]
[1752551563090,0.9884987,679.57,678.78,0.98548496]
[1752551563394,0.9884987,679.56,678.79,0.98548496]
[1752551563595,0.9884987,679.54,678.8,0.98548496]
[1752551564094,0.9884987,679.54,678.79,0.98548496]
[1752551564889,0.9884987,679.53,678.78,0.98548496]
[1752551565093,0.9884987,679.53,678.79,0.98548496]
[1752551565293,0.9884987,679.54,678.78,0.98548496]
[1752551565995,0.9884987,679.55,678.79,0.98548496]
[1752551567192,0.9884987,679.56,678.79,0.98548496]
[1752551567996,0.9884987,679.55,678.78,0.98548496]
[1752551568397,0.9884987,679.53,678.79,0.98548496]
[1752551568592,0.9884987,679.57,678.76,0.98548496]
[1752551569394,0.9884987,679.54,678.73,0.98548496]
[1752551569594,0.9884987,679.54,678.72,0.98548496]
[1752551570299,0.9884987,679.55,678.72,0.98548496]
[1752551570795,0.9884987,679.54,678.72,0.98548496]
[1752551570999,0.9884987,679.55,678.72,0.98548496]
[1752551571197,0.9884987,679.59,678.69,0.98548496]
[1752551573098,0.9884987,679.62,678.67,0.98548496]
[1752551573303,0.9884987,679.63,678.67,0.98548496]
[1752551573499,0.9884987,679.62,678.67,0.98548496]